fUSD/lending_fUSD_20260506
["ID","MTS","AMOUNT","RATE_DAILY","PERIOD"]
[421690510,1778043067000,-152.27713592,0.00040822,60]
[421690456,1778043067000,-150.0,0.00040822,30]
[421690464,1778043067000,-500.0,0.00040822,60]
[421690458,1778043067000,-423.0,0.00040822,60]
[421690465,1778043067000,-537.0,0.00040822,60]
[421690460,1778043067000,-150.0,0.00040822,30]
[421690461,1778043067000,-537.0,0.00040822,60]
[421690462,1778043067000,-423.0,0.00040822,60]
[421690466,1778043067000,-423.0,0.00040822,60]
[421690468,1778043067000,-537.0,0.00040822,60]
[421690472,1778043067000,-423.0,0.00040822,60]
[421690471,1778043067000,-423.0,0.00040822,60]
[421690469,1778043067000,-423.0,0.00040822,60]
[421690470,1778043067000,-521.83722125,0.00040822,60]
[421690467,1778043067000,-500.0,0.00040822,60]
[421690474,1778043067000,-423.0,0.00040822,60]
[421690473,1778043067000,-537.0,0.00040822,60]
[421690476,1778043067000,-537.0,0.00040822,60]
[421690475,1778043067000,-423.0,0.00040822,60]
[421690489,1778043067000,-500.0,0.00040822,60]
[421690478,1778043067000,-537.0,0.00040822,60]
[421690479,1778043067000,-423.0,0.00040822,60]
[421690488,1778043067000,-209.8895384,0.00040822,60]
[421690512,1778043067000,-150.0,0.00040822,60]
[421690484,1778043067000,-537.0,0.00040822,60]
[421690513,1778043067000,-150.0,0.00040822,60]
[421690550,1778043067000,-500.0,0.00040822,2]
[421690545,1778043067000,-500.0,0.00040822,60]
[421690546,1778043067000,-500.0,0.00040822,2]
[421690548,1778043067000,-500.0,0.00040822,2]
[421690547,1778043067000,-500.0,0.00040822,2]
[421690551,1778043067000,-500.0,0.00040822,2]
[421690549,1778043067000,-251.17490165,0.00040822,60]
[421690553,1778043067000,-500.0,0.00040822,2]
[421690563,1778043067000,-152.52386965,0.00040941,120]
[421690564,1778043067000,-189698.0,0.0004095,60]
[421690565,1778043067000,-250.0,0.00040967,87]
[421690555,1778043067000,-500.0,0.00040822,2]
[421690554,1778043067000,-500.0,0.00040822,2]
[421690559,1778043067000,-326.77120536,0.00040822,2]
[421690557,1778043067000,-500.0,0.00040822,2]
[421690558,1778043067000,-500.0,0.00040822,2]
[421690556,1778043067000,-500.0,0.00040822,2]
[421690560,1778043067000,-719.72,0.00040826,120]
[421690561,1778043067000,-22574.93,0.000409,120]
[421690567,1778043067000,-413.48352252,0.00041,120]
[421690566,1778043067000,-275.64036147,0.00041,30]
[421690572,1778043067000,-500.0,0.00041003,21]
[421690573,1778043067000,-800.0,0.00041003,21]
[421690568,1778043067000,-959.76018642,0.00041,120]
[421690570,1778043067000,-2523.0,0.00041,120]
[421690569,1778043067000,-183.0,0.00041,30]
[421690511,1778043067000,-500.0,0.00040822,60]
[421690543,1778043067000,-500.0,0.00040822,60]
[421690544,1778043067000,-500.0,0.00040822,2]
[421690562,1778043067000,-719.72,0.00040926,120]
[421690571,1778043067000,-809.6671851,0.00041,120]
[421690517,1778043067000,-150.0,0.00040822,60]
[421690552,1778043067000,-500.0,0.00040822,2]
[421690522,1778043067000,-250.0,0.00040822,60]
[421690521,1778043067000,-150.0,0.00040822,60]
[421690518,1778043067000,-216.0,0.00040822,60]
[421690523,1778043067000,-500.0,0.00040822,60]
[421690520,1778043067000,-150.0,0.00040822,60]
[421690526,1778043067000,-500.0,0.00040822,60]
[421690519,1778043067000,-150.0,0.00040822,60]
[421690527,1778043067000,-500.0,0.00040822,60]
[421690515,1778043067000,-150.0,0.00040822,2]
[421690524,1778043067000,-500.0,0.00040822,60]
[421690525,1778043067000,-500.0,0.00040822,60]
[421690529,1778043067000,-500.0,0.00040822,60]
[421690516,1778043067000,-224.78889223,0.00040822,60]
[421690536,1778043067000,-506.33798591,0.00040822,60]
[421690534,1778043067000,-500.0,0.00040822,60]
[421690541,1778043067000,-500.0,0.00040822,60]
[421690533,1778043067000,-500.0,0.00040822,60]
[421690531,1778043067000,-500.0,0.00040822,60]
[421690539,1778043067000,-500.0,0.00040822,60]
[421690540,1778043067000,-500.0,0.00040822,60]
[421690542,1778043067000,-500.0,0.00040822,2]
[421690530,1778043067000,-500.0,0.00040822,60]
[421690537,1778043067000,-634.45337951,0.00040822,60]
[421690535,1778043067000,-500.0,0.00040822,60]
[421690528,1778043067000,-500.0,0.00040822,60]
[421690538,1778043067000,-500.0,0.00040822,60]
[421690532,1778043067000,-500.0,0.00040822,60]
[421690590,1778043068000,-719.72,0.00041126,120]
[421690588,1778043068000,-348.27209211,0.00041096,2]
[421690587,1778043068000,-1560.0,0.00041096,120]
[421690592,1778043068000,-2305.0,0.00041181,11]
[421690601,1778043068000,-598.0,0.00041221,2]
[421690602,1778043068000,-539.0,0.00041221,2]
[421690594,1778043068000,-20000.0,0.00041195,120]
[421690600,1778043068000,-31365.55776007,0.00041209,70]
[421690599,1778043068000,-2500.0,0.000412,120]
[421690589,1778043068000,-350.0,0.00041114,3]
[421690593,1778043068000,-20000.0,0.00041195,120]
[421690583,1778043068000,-257.0,0.00041096,30]
[421690581,1778043068000,-400.0,0.00041096,30]
[421690591,1778043068000,-500.0,0.00041128,17]
[421690585,1778043068000,-400.0,0.00041096,30]
[421690586,1778043068000,-264.0,0.00041096,30]
[421690580,1778043068000,-185.0,0.00041096,30]
[421690582,1778043068000,-400.0,0.00041096,30]
[421690579,1778043068000,-150.0,0.00041096,30]
[421690577,1778043068000,-156.48951136,0.0004107,120]
[421690578,1778043068000,-158.02757532,0.00041095,120]
[421690575,1778043068000,-719.72,0.00041026,120]
[421690576,1778043068000,-1142.1,0.00041041,120]
[421690574,1778043068000,-500.0,0.00041003,21]
[421690603,1778043068000,-3536.0,0.00041221,2]
[421690584,1778043068000,-400.0,0.00041096,30]
[421690596,1778043068000,-2184.00006,0.00041196,2]
[421690606,1778043068000,-417.0,0.00041221,2]
[421690595,1778043068000,-30213.0,0.00041195,120]
[421690598,1778043068000,-2500.0,0.000412,120]
[421690628,1778043068000,-2500.0,0.000415,120]
[421690627,1778043068000,-60522.12469072,0.000415,120]
[421690626,1778043068000,-6189.21175649,0.000415,120]
[421690625,1778043068000,-156.48951136,0.00041457,120]
[421690622,1778043068000,-719.72,0.00041426,120]
[421690618,1778043068000,-1560.0,0.0004137,120]
[421690621,1778043068000,-5118.01986841,0.000414,120]
[421690624,1778043068000,-150.0,0.00041438,120]
[421690620,1778043068000,-42660.5884746,0.00041393,2]
[421690623,1778043068000,-150.0,0.00041438,120]
[421690619,1778043068000,-1401.996649,0.00041393,2]
[421690617,1778043068000,-8738.39496827,0.00041357,2]
[421690629,1778043068000,-2500.0,0.000415,120]
[421690614,1778043068000,-164.007,0.00041296,2]
[421690616,1778043068000,-719.72,0.00041326,120]
[421690604,1778043068000,-1014.0,0.00041221,2]
[421690610,1778043068000,-152.0,0.00041236,11]
[421690613,1778043068000,-200.0,0.0004129,7]
[421690611,1778043068000,-310.0,0.00041288,90]
[421690605,1778043068000,-739.0,0.00041221,2]
[421690612,1778043068000,-1000.0,0.0004129,60]
[421690615,1778043068000,-250.0,0.00041304,91]
[421690607,1778043068000,-150.0,0.00041221,2]
[421690597,1778043068000,-164.007,0.00041196,2]
[421690609,1778043068000,-719.72,0.00041226,120]
[421690608,1778043068000,-5287.0,0.00041221,2]
[421690665,1778043069000,-275.91,0.000419,30]
[421690659,1778043069000,-156.48951136,0.00041844,120]
[421690661,1778043069000,-742.2641055,0.00041872,120]
[421690669,1778043069000,-150.54233274,0.000419,120]
[421690660,1778043069000,-246.92,0.00041852,120]
[421690662,1778043069000,-66000.0,0.00041889,120]
[421690670,1778043069000,-150.54233274,0.000419,120]
[421690664,1778043069000,-4500.0,0.000419,30]
[421690667,1778043069000,-500.0,0.000419,15]
[421690652,1778043069000,-250.0,0.00041819,96]
[421690658,1778043069000,-150.0,0.0004183,30]
[421690682,1778043069000,-1096.29,0.00041917,120]
[421690668,1778043069000,-150.54233276,0.000419,120]
[421690666,1778043069000,-7448.02400435,0.000419,15]
[421690672,1778043069000,-150.54233274,0.000419,120]
[421690679,1778043069000,-158.09513822,0.00041917,120]
[421690671,1778043069000,-150.54233274,0.000419,120]
[421690674,1778043069000,-168.75516773,0.00041914,14]
[421690683,1778043069000,-1096.29,0.00041917,120]
[421690684,1778043069000,-1096.29,0.00041917,120]
[421690678,1778043069000,-202.08812646,0.00041917,120]
[421690649,1778043069000,-548.63,0.00041811,120]
[421690663,1778043069000,-24999.0,0.0004189,60]
[421690650,1778043069000,-289.46,0.00041811,120]
[421690642,1778043069000,-154.10554824,0.00041753,120]
[421690654,1778043069000,-800.0,0.00041825,120]
[421690676,1778043069000,-500.0,0.00041916,11]
[421690630,1778043069000,-889.39,0.000415,120]
[421690631,1778043069000,-719.72,0.00041526,120]
[421690633,1778043069000,-250.0,0.00041585,93]
[421690634,1778043069000,-500.0,0.00041596,78]
[421690643,1778043069000,-215.64,0.00041789,120]
[421690632,1778043069000,-150.0,0.00041558,120]
[421690639,1778043069000,-1560.0,0.00041644,120]
[421690638,1778043069000,-202.45805464,0.0004164,60]
[421690635,1778043069000,-157.0,0.000416,120]
[421690651,1778043069000,-375.34,0.00041817,30]
[421690636,1778043069000,-500.0,0.00041606,13]
[421690640,1778043069000,-1142.1,0.00041694,120]
[421690641,1778043069000,-719.72,0.00041726,120]
[421690644,1778043069000,-208.86,0.00041789,120]
[421690645,1778043069000,-1046.98494811,0.00041789,30]
[421690646,1778043069000,-66000.0,0.00041789,120]
[421690655,1778043069000,-719.72,0.00041826,120]
[421690648,1778043069000,-2500.0,0.000418,120]
[421690656,1778043069000,-150.0,0.0004183,30]
[421690657,1778043069000,-245.49086411,0.0004183,30]
[421690653,1778043069000,-500.0,0.0004182,107]
[421690637,1778043069000,-719.72,0.00041626,120]
[421690677,1778043069000,-500.0,0.00041916,31]
[421690647,1778043069000,-163.0,0.00041791,11]
[421690680,1778043069000,-1096.29,0.00041917,120]
[421690710,1778043069000,-640.05,0.00041917,120]
[421690709,1778043069000,-556.81588451,0.00041917,120]
[421690711,1778043069000,-640.05,0.00041917,120]
[421690714,1778043069000,-640.05,0.00041917,120]
[421690715,1778043069000,-640.05,0.00041917,120]
[421690712,1778043069000,-640.05,0.00041917,120]
[421690713,1778043069000,-640.05,0.00041917,120]
[421690716,1778043069000,-640.05,0.00041917,120]
[421690718,1778043069000,-640.05,0.00041917,120]
[421690723,1778043069000,-640.05,0.00041917,120]
[421690708,1778043069000,-500.0,0.00041917,120]
[421690721,1778043069000,-640.05,0.00041917,120]
[421690722,1778043069000,-640.05,0.00041917,120]
[421690719,1778043069000,-640.05,0.00041917,120]
[421690717,1778043069000,-640.05,0.00041917,120]
[421690724,1778043069000,-640.05,0.00041917,120]
[421690729,1778043069000,-640.05,0.00041917,120]
[421690730,1778043069000,-640.05,0.00041917,120]
[421690728,1778043069000,-640.05,0.00041917,120]
[421690727,1778043069000,-640.05,0.00041917,120]
[421690726,1778043069000,-640.05,0.00041917,120]
[421690673,1778043069000,-500.0,0.00041911,114]
[421690720,1778043069000,-640.05,0.00041917,120]
[421690705,1778043069000,-368.17329323,0.00041917,120]
[421690731,1778043069000,-640.05,0.00041917,120]
[421690707,1778043069000,-268.66396044,0.00041917,120]
[421690675,1778043069000,-151.0,0.00041914,14]
[421690681,1778043069000,-1096.29,0.00041917,120]
[421690686,1778043069000,-1096.29,0.00041917,120]
[421690685,1778043069000,-1096.29,0.00041917,120]
[421690687,1778043069000,-1096.29,0.00041917,120]
[421690688,1778043069000,-1096.29,0.00041917,120]
[421690725,1778043069000,-640.05,0.00041917,120]
[421690691,1778043069000,-1096.29,0.00041917,120]
[421690689,1778043069000,-1096.29,0.00041917,120]
[421690694,1778043069000,-561.39774132,0.00041917,120]
[421690692,1778043069000,-1096.29,0.00041917,120]
[421690690,1778043069000,-1096.29,0.00041917,120]
[421690697,1778043069000,-1096.29,0.00041917,120]
[421690693,1778043069000,-1096.29,0.00041917,120]
[421690695,1778043069000,-1096.29,0.00041917,120]
[421690698,1778043069000,-1096.29,0.00041917,120]
[421690699,1778043069000,-1096.29,0.00041917,120]
[421690701,1778043069000,-1096.29,0.00041917,120]
[421690700,1778043069000,-1096.29,0.00041917,120]
[421690702,1778043069000,-1096.29,0.00041917,120]
[421690706,1778043069000,-201.26253076,0.00041917,120]
[421690704,1778043069000,-1096.52553585,0.00041917,120]
[421690696,1778043069000,-1096.29,0.00041917,120]
[421690703,1778043069000,-1096.29,0.00041917,120]
[421690765,1778043070000,-324.37312953,0.00041917,120]
[421690766,1778043070000,-2084.1,0.00041917,120]
[421690762,1778043070000,-500.0,0.00041917,120]
[421690758,1778043070000,-285.05489923,0.00041917,120]
[421690764,1778043070000,-2084.1,0.00041917,120]
[421690760,1778043070000,-2084.1,0.00041917,120]
[421690759,1778043070000,-500.0,0.00041917,120]
[421690763,1778043070000,-2084.1,0.00041917,120]
[421690761,1778043070000,-500.0,0.00041917,120]
[421690768,1778043070000,-2084.1,0.00041917,120]
[421690777,1778043070000,-2084.1,0.00041917,120]
[421690769,1778043070000,-2084.1,0.00041917,120]
[421690772,1778043070000,-2084.1,0.00041917,120]
[421690773,1778043070000,-2084.1,0.00041917,120]
[421690767,1778043070000,-2084.1,0.00041917,120]
[421690770,1778043070000,-2084.1,0.00041917,120]
[421690776,1778043070000,-2084.1,0.00041917,120]
[421690774,1778043070000,-2084.1,0.00041917,120]
[421690778,1778043070000,-2084.1,0.00041917,120]
[421690779,1778043070000,-2084.1,0.00041917,120]
[421690757,1778043070000,-205.30178992,0.00041917,120]
[421690771,1778043070000,-2084.1,0.00041917,120]
[421690756,1778043070000,-218.23723823,0.00041917,120]
[421690744,1778043070000,-500.0,0.00041917,120]
[421690754,1778043070000,-500.0,0.00041917,120]
[421690780,1778043070000,-238.81064438,0.00041917,120]
[421690733,1778043070000,-640.22351911,0.00041917,120]
[421690734,1778043070000,-500.0,0.00041917,120]
[421690732,1778043070000,-640.05,0.00041917,120]
[421690735,1778043070000,-500.0,0.00041917,120]
[421690737,1778043070000,-500.0,0.00041917,120]
[421690740,1778043070000,-500.0,0.00041917,120]
[421690738,1778043070000,-500.0,0.00041917,120]
[421690743,1778043070000,-500.0,0.00041917,120]
[421690739,1778043070000,-500.0,0.00041917,120]
[421690755,1778043070000,-299.98771783,0.00041917,120]
[421690736,1778043070000,-500.0,0.00041917,120]
[421690742,1778043070000,-500.0,0.00041917,120]
[421690745,1778043070000,-540.09,0.00041917,120]
[421690746,1778043070000,-500.0,0.00041917,120]
[421690747,1778043070000,-500.0,0.00041917,120]
[421690748,1778043070000,-500.0,0.00041917,120]
[421690749,1778043070000,-500.0,0.00041917,120]
[421690752,1778043070000,-177.67286704,0.00041917,120]
[421690753,1778043070000,-188.82210204,0.00041917,120]
[421690750,1778043070000,-505.0,0.00041917,120]
[421690751,1778043070000,-287.27992179,0.00041917,120]
[421690741,1778043070000,-500.0,0.00041917,120]
[421690781,1778043070000,-2084.1,0.00041917,120]
[421690775,1778043070000,-2084.1,0.00041917,120]
[421690783,1778043070000,-2084.1,0.00041917,120]
[421690807,1778043070000,-171.10881733,0.00041917,120]
[421690814,1778043070000,-234.05182548,0.00041917,120]
[421690812,1778043070000,-305.63086426,0.00041917,120]
[421690809,1778043070000,-340.74527831,0.00041917,120]
[421690806,1778043070000,-175.67280197,0.00041917,120]
[421690819,1778043070000,-500.0,0.00041917,120]
[421690815,1778043070000,-206.44850788,0.00041917,120]
[421690820,1778043070000,-346.03763521,0.00041917,120]
[421690821,1778043070000,-500.0,0.00041917,120]
[421690818,1778043070000,-500.0,0.00041917,120]
[421690816,1778043070000,-363.88632683,0.00041917,120]
[421690822,1778043070000,-455.5887729,0.00041917,120]
[421690824,1778043070000,-412.25564674,0.00041917,120]
[421690823,1778043070000,-225.45067702,0.00041917,120]
[421690825,1778043070000,-252.1832496,0.00041917,120]
[421690827,1778043070000,-171.28207283,0.00041917,120]
[421690829,1778043070000,-153.47537181,0.00041917,120]
[421690828,1778043070000,-312.62636921,0.00041917,120]
[421690826,1778043070000,-458.77587923,0.00041917,120]
[421690831,1778043070000,-500.0,0.00041917,120]
[421690832,1778043070000,-500.0,0.00041917,120]
[421690782,1778043070000,-2084.1,0.00041917,120]
[421690830,1778043070000,-308.78779206,0.00041917,120]
[421690810,1778043070000,-364.22504271,0.00041917,120]
[421690802,1778043070000,-500.0,0.00041917,120]
[421690817,1778043070000,-251.30268076,0.00041917,120]
[421690808,1778043070000,-181.98409784,0.00041917,120]
[421690784,1778043070000,-2084.1,0.00041917,120]
[421690785,1778043070000,-2084.1,0.00041917,120]
[421690805,1778043070000,-609.18395638,0.00041917,120]
[421690789,1778043070000,-266.80370449,0.00041917,120]
[421690788,1778043070000,-2084.24995061,0.00041917,120]
[421690786,1778043070000,-2084.1,0.00041917,120]
[421690791,1778043070000,-294.72084738,0.00041917,120]
[421690790,1778043070000,-154.50089017,0.00041917,120]
[421690792,1778043070000,-500.0,0.00041917,120]
[421690801,1778043070000,-158.22443044,0.00041917,120]
[421690793,1778043070000,-228.0435,0.00041917,120]
[421690787,1778043070000,-357.49906133,0.00041917,120]
[421690794,1778043070000,-222.19898511,0.00041917,120]
[421690799,1778043070000,-306.68135249,0.00041917,120]
[421690798,1778043070000,-500.0,0.00041917,120]
[421690797,1778043070000,-273.02226282,0.00041917,120]
[421690795,1778043070000,-158.12039575,0.00041917,120]
[421690804,1778043070000,-312.50344782,0.00041917,120]
[421690800,1778043070000,-182.12375104,0.00041917,120]
[421690796,1778043070000,-229.12785433,0.00041917,120]
[421690813,1778043070000,-188.07897027,0.00041917,120]
[421690803,1778043070000,-500.0,0.00041917,120]
[421690811,1778043070000,-273.57999425,0.00041917,120]
[421690874,1778043071000,-500.0,0.00041917,120]
[421690870,1778043071000,-500.0,0.00041917,120]
[421690871,1778043071000,-500.0,0.00041917,120]
[421690869,1778043071000,-500.0,0.00041917,120]
[421690868,1778043071000,-500.0,0.00041917,120]
[421690865,1778043071000,-204.06481201,0.00041917,120]
[421690867,1778043071000,-500.0,0.00041917,120]
[421690862,1778043071000,-188.60243868,0.00041917,120]
[421690864,1778043071000,-271.22560942,0.00041917,11]
[421690872,1778043071000,-500.0,0.00041917,120]
[421690873,1778043071000,-500.0,0.00041917,120]
[421690866,1778043071000,-500.0,0.00041917,120]
[421690884,1778043071000,-372.22475689,0.00041917,120]
[421690886,1778043071000,-209.91459436,0.00041917,120]
[421690877,1778043071000,-500.0,0.00041917,120]
[421690881,1778043071000,-500.0,0.00041917,120]
[421690879,1778043071000,-500.0,0.00041917,120]
[421690876,1778043071000,-647.92513328,0.00041917,120]
[421690878,1778043071000,-500.0,0.00041917,120]
[421690880,1778043071000,-500.0,0.00041917,120]
[421690883,1778043071000,-500.0,0.00041917,120]
[421690882,1778043071000,-175.7183207,0.00041917,120]
[421690896,1778043071000,-418.46203727,0.00041917,120]
[421690885,1778043071000,-500.0,0.00041917,120]
[421690887,1778043071000,-500.0,0.00041917,120]
[421690863,1778043071000,-514.31533696,0.00041917,120]
[421690875,1778043071000,-202.6908473,0.00041917,120]
[421690861,1778043071000,-182.98232718,0.00041917,120]
[421690834,1778043071000,-586.1,0.00041917,120]
[421690860,1778043071000,-586.25191167,0.00041917,120]
[421690890,1778043071000,-647.01376244,0.00041917,120]
[421690837,1778043071000,-586.1,0.00041917,120]
[421690838,1778043071000,-586.1,0.00041917,120]
[421690836,1778043071000,-586.1,0.00041917,120]
[421690833,1778043071000,-617.18435222,0.00041917,120]
[421690835,1778043071000,-193.66176302,0.00041917,120]
[421690840,1778043071000,-186.94539984,0.00041917,120]
[421690842,1778043071000,-586.1,0.00041917,120]
[421690846,1778043071000,-586.1,0.00041917,120]
[421690851,1778043071000,-586.1,0.00041917,120]
[421690850,1778043071000,-586.1,0.00041917,120]
[421690839,1778043071000,-586.1,0.00041917,120]
[421690859,1778043071000,-586.1,0.00041917,120]
[421690843,1778043071000,-586.1,0.00041917,120]
[421690841,1778043071000,-586.1,0.00041917,120]
[421690847,1778043071000,-586.1,0.00041917,120]
[421690844,1778043071000,-586.1,0.00041917,120]
[421690845,1778043071000,-586.1,0.00041917,120]
[421690849,1778043071000,-586.1,0.00041917,120]
[421690852,1778043071000,-586.1,0.00041917,120]
[421690853,1778043071000,-586.1,0.00041917,120]
[421690855,1778043071000,-586.1,0.00041917,120]
[421690857,1778043071000,-586.1,0.00041917,120]
[421690856,1778043071000,-586.1,0.00041917,120]
[421690858,1778043071000,-586.1,0.00041917,120]
[421690854,1778043071000,-182.80619076,0.00041917,120]
[421690848,1778043071000,-586.1,0.00041917,120]
[421690889,1778043071000,-500.0,0.00041917,120]
[421690933,1778043071000,-581.21107004,0.00041917,120]
[421690892,1778043071000,-211.32801174,0.00041917,120]
[421690922,1778043071000,-155.07703026,0.00041917,120]
[421690932,1778043071000,-303.97605187,0.00041917,120]
[421690923,1778043071000,-227.10524456,0.00041917,120]
[421690926,1778043071000,-251.0116995,0.00041917,120]
[421690924,1778043071000,-189.0980137,0.00041917,120]
[421690930,1778043071000,-160.4245312,0.00041917,120]
[421690927,1778043071000,-500.0,0.00041917,120]
[421690928,1778043071000,-500.0,0.00041917,120]
[421690925,1778043071000,-2853.0478,0.00041917,120]
[421690929,1778043071000,-299.86949851,0.00041917,120]
[421690937,1778043071000,-500.0,0.00041917,120]
[421690934,1778043071000,-500.0,0.00041917,120]
[421690931,1778043071000,-259.69578862,0.00041917,120]
[421690936,1778043071000,-500.0,0.00041917,120]
[421690943,1778043071000,-211.94710245,0.00041917,120]
[421690938,1778043071000,-500.0,0.00041917,120]
[421690940,1778043071000,-500.0,0.00041917,120]
[421690939,1778043071000,-500.0,0.00041917,120]
[421690941,1778043071000,-375.07204757,0.00041917,120]
[421690942,1778043071000,-236.99293103,0.00041917,120]
[421690945,1778043071000,-500.0,0.00041917,2]
[421690947,1778043071000,-530.31007783,0.00041917,2]
[421690946,1778043071000,-299.19344119,0.00041917,120]
[421690948,1778043071000,-189.68472998,0.00041917,31]
[421690949,1778043071000,-241.44759621,0.00041917,120]
[421690888,1778043071000,-500.0,0.00041917,120]
[421690935,1778043071000,-622.20239761,0.00041917,120]
[421690920,1778043071000,-2852.96,0.00041917,120]
[421690944,1778043071000,-500.0,0.00041917,120]
[421690919,1778043071000,-2852.96,0.00041917,120]
[421690921,1778043071000,-2852.96,0.00041917,120]
[421690893,1778043071000,-270.14017798,0.00041917,120]
[421690894,1778043071000,-409.40141068,0.00041917,120]
[421690895,1778043071000,-445.01025436,0.00041917,120]
[421690898,1778043071000,-2852.96,0.00041917,120]
[421690897,1778043071000,-470.37291249,0.00041917,120]
[421690905,1778043071000,-2852.96,0.00041917,120]
[421690907,1778043071000,-2852.96,0.00041917,120]
[421690900,1778043071000,-2852.96,0.00041917,120]
[421690904,1778043071000,-2852.96,0.00041917,120]
[421690899,1778043071000,-2852.96,0.00041917,120]
[421690903,1778043071000,-2852.96,0.00041917,120]
[421690908,1778043071000,-2852.96,0.00041917,120]
[421690891,1778043071000,-271.58347018,0.00041917,120]
[421690906,1778043071000,-217.68951286,0.00041917,120]
[421690901,1778043071000,-2852.96,0.00041917,120]
[421690912,1778043071000,-2852.96,0.00041917,120]
[421690917,1778043071000,-2852.96,0.00041917,120]
[421690916,1778043071000,-2852.96,0.00041917,120]
[421690915,1778043071000,-2852.96,0.00041917,120]
[421690914,1778043071000,-2852.96,0.00041917,120]
[421690918,1778043071000,-2852.96,0.00041917,120]
[421690913,1778043071000,-2852.96,0.00041917,120]
[421690909,1778043071000,-2852.96,0.00041917,120]
[421690910,1778043071000,-2852.96,0.00041917,120]
[421690902,1778043071000,-2852.96,0.00041917,120]
[421690911,1778043071000,-2852.96,0.00041917,120]
[421690986,1778043072000,-500.0,0.00041917,120]
[421690988,1778043072000,-500.0,0.00041917,120]
[421690984,1778043072000,-2343.98,0.00041917,30]
[421690979,1778043072000,-500.0,0.00041917,120]
[421690985,1778043072000,-500.0,0.00041917,120]
[421690987,1778043072000,-2343.98,0.00041917,30]
[421690982,1778043072000,-2343.98,0.00041917,30]
[421690989,1778043072000,-500.0,0.00041917,120]
[421690981,1778043072000,-500.0,0.00041917,120]
[421690991,1778043072000,-2343.98,0.00041917,30]
[421690983,1778043072000,-500.0,0.00041917,120]
[421690990,1778043072000,-506.38616294,0.00041917,120]
[421690999,1778043072000,-2343.98,0.00041917,30]
[421690994,1778043072000,-500.0,0.00041917,120]
[421690993,1778043072000,-2343.98,0.00041917,30]
[421690995,1778043072000,-500.0,0.00041917,120]
[421690996,1778043072000,-2343.98,0.00041917,30]
[421691000,1778043072000,-500.0,0.00041917,120]
[421690998,1778043072000,-500.0,0.00041917,120]
[421690997,1778043072000,-514.73998195,0.00041917,120]
[421691002,1778043072000,-500.0,0.00041917,120]
[421691001,1778043072000,-2343.98,0.00041917,30]
[421691011,1778043072000,-193.30169017,0.00041917,120]
[421691010,1778043072000,-352.50493473,0.00041917,120]
[421690980,1778043072000,-2343.98,0.00041917,30]
[421690992,1778043072000,-500.0,0.00041917,120]
[421690978,1778043072000,-2343.98,0.00041917,30]
[421691005,1778043072000,-2343.98,0.00041917,30]
[421690969,1778043072000,-2343.98,0.00041917,30]
[421690954,1778043072000,-500.0,0.00041917,120]
[421690951,1778043072000,-500.0,0.00041917,120]
[421690950,1778043072000,-500.0,0.00041917,120]
[421690952,1778043072000,-500.0,0.00041917,120]
[421690953,1778043072000,-500.0,0.00041917,120]
[421690955,1778043072000,-500.0,0.00041917,120]
[421690957,1778043072000,-500.0,0.00041917,120]
[421690960,1778043072000,-500.0,0.00041917,120]
[421690963,1778043072000,-2343.98,0.00041917,30]